fUST/lending_fUST_20250624
["ID","MTS","AMOUNT","RATE_DAILY","PERIOD"]
[367378282,1750774256382,-460.0,0.00020547,2]
[367378283,1750774256391,-1527.72,0.00020547,2]
[367378284,1750774256401,-460.0,0.00020547,2]
[367378285,1750774256410,-460.0,0.00020547,2]
[367378286,1750774256420,-3521.84,0.00020547,2]
[367378287,1750774256429,-151.0,0.00020547,2]
[367378288,1750774256438,-460.0,0.00020547,2]
[367378289,1750774256447,-460.0,0.00020547,2]
[367378290,1750774256457,-1564.63,0.00020547,2]
[367378291,1750774256467,-929.775711,0.00020547,2]
[367378292,1750774256476,-929.775711,0.00020547,2]
[367378293,1750774256486,-2676.38,0.00020547,2]
[367378294,1750774256495,-1122.37,0.00020547,2]
[367378295,1750774256505,-460.0,0.00020547,2]
[367378296,1750774256516,-878.98,0.00020547,2]
[367378297,1750774256525,-151.0,0.00020547,2]
[367378298,1750774256534,-460.0,0.00020547,2]
[367378299,1750774256544,-460.0,0.00020547,2]
[367378300,1750774256554,-468.08926014,0.00020547,2]
[367378301,1750774256564,-460.0,0.00020547,2]
[367378302,1750774256574,-460.0,0.00020547,2]
[367378303,1750774256584,-460.0,0.00020547,2]
[367378304,1750774256593,-666.8,0.00020547,2]
[367378305,1750774256603,-460.0,0.00020547,2]
[367378306,1750774256612,-667.52,0.00020547,2]
[367378307,1750774256622,-2412.55,0.00020547,2]
[367378308,1750774256632,-460.0,0.00020547,2]
[367378309,1750774256641,-460.0,0.00020547,2]
[367378310,1750774256652,-460.0,0.00020547,2]
[367378311,1750774256662,-460.0,0.00020547,2]
[367378312,1750774256671,-460.0,0.00020547,2]
[367378313,1750774256681,-460.0,0.00020547,2]
[367378314,1750774256690,-460.0,0.00020547,2]
[367378315,1750774256699,-460.0,0.00020547,2]
[367378316,1750774256708,-757.14,0.00020547,2]
[367378317,1750774256718,-460.0,0.00020547,2]
[367378318,1750774256727,-460.0,0.00020547,2]
[367378319,1750774256737,-544.283124,0.00020547,2]
[367378320,1750774256746,-460.0,0.00020547,2]
[367378321,1750774256755,-3142.01,0.00020547,2]
[367378322,1750774256765,-460.0,0.00020547,2]
[367378323,1750774256774,-3233.74,0.00020547,2]
[367378324,1750774256784,-460.0,0.00020547,2]
[367378325,1750774256794,-460.0,0.00020547,2]
[367378326,1750774256806,-460.0,0.00020547,2]
[367378327,1750774256818,-460.0,0.00020547,2]
[367378328,1750774256828,-460.0,0.00020547,2]
[367378329,1750774256838,-490.48,0.00020547,2]
[367378330,1750774256849,-460.0,0.00020547,2]
[367378331,1750774256859,-589.92,0.00020547,2]
[367378332,1750774256868,-1637.3,0.00020547,2]
[367378333,1750774256877,-4582.47,0.00020547,2]
[367378334,1750774256886,-225.21242448,0.00020547,2]
[367378335,1750774256897,-460.0,0.00020547,2]
[367378336,1750774256907,-4475.1,0.00020547,2]
[367378337,1750774256916,-460.0,0.00020547,2]
[367378338,1750774256926,-150.84,0.00020547,2]
[367378339,1750774256936,-449.79514169,0.00020547,2]
[367378340,1750774256946,-568.1,0.00020547,2]
[367378341,1750774256955,-460.0,0.00020547,2]
[367378342,1750774256965,-953.99,0.00020547,2]
[367378343,1750774256975,-1066.59,0.00020547,2]
[367378344,1750774256985,-1268.76,0.00020547,2]
[367378345,1750774256995,-151.0,0.00020547,2]
[367378346,1750774257005,-460.0,0.00020547,2]
[367378347,1750774257015,-460.0,0.00020547,2]
[367378348,1750774257025,-170.261834,0.00020547,2]
[367378349,1750774257036,-993.32,0.00020547,2]
[367378350,1750774257046,-1291.29,0.00020547,2]
[367378351,1750774257055,-170.261834,0.00020547,2]
[367378352,1750774257065,-460.0,0.00020547,2]
[367378353,1750774257075,-816.09,0.00020547,2]
[367378354,1750774257085,-2309.93,0.00020547,2]
[367378355,1750774257095,-460.0,0.00020547,2]
[367378356,1750774257104,-271.397187,0.00020547,2]
[367378357,1750774257113,-460.0,0.00020547,2]
[367378358,1750774257122,-2618.18,0.00020547,2]
[367378359,1750774257132,-460.0,0.00020547,2]
[367378360,1750774257142,-460.0,0.00020547,2]
[367378361,1750774257152,-8696.44,0.00020547,2]
[367378362,1750774257162,-2083.09,0.00020547,2]
[367378363,1750774257171,-1000.0,0.00020548,2]
[367378364,1750774257181,-1000.0,0.00020548,2]
[367378365,1750774257190,-416.06737292,0.00020548,2]
[367378366,1750774257200,-1000.0,0.00020548,2]
[367378367,1750774257209,-1000.0,0.00020548,2]
[367378368,1750774257218,-160.0,0.00020548,4]
[367378369,1750774257228,-151.0,0.00020568,2]
[367378370,1750774257238,-151.0,0.00020568,2]
[367378371,1750774257247,-151.0,0.00020568,2]
[367378372,1750774257257,-151.0,0.00020568,2]
[367378373,1750774257269,-225.692176,0.00020568,2]
[367378374,1750774257279,-153.134164,0.00020568,2]
[367378375,1750774257288,-1000.0,0.00020568,2]
[367378376,1750774257299,-1000.0,0.00020568,2]
[367378377,1750774257308,-1000.0,0.00020568,2]
[367378378,1750774257318,-1000.0,0.00020584,2]
[367378379,1750774257328,-500.0,0.00020584,2]
[367378380,1750774257338,-1026.48524204,0.00020584,2]
[367378381,1750774257349,-1000.0,0.00020584,2]
[367378382,1750774257360,-366.36247253,0.00020584,2]
[367378383,1750774257506,-1000.0,0.00020584,2]
[367378384,1750774257516,-1000.0,0.00020584,2]
[367378385,1750774257526,-1000.0,0.00020584,2]
[367378386,1750774257535,-500.0,0.00020584,2]
[367378387,1750774257545,-1000.0,0.00020584,2]
[367378388,1750774257555,-246.24509301,0.00020589,2]
[367378389,1750774257564,-1000.0,0.00020589,2]
[367378390,1750774257574,-1000.0,0.00020589,2]
[367378391,1750774257583,-8254.34665143,0.0002059,3]
[367378392,1750774257592,-7005.96,0.000206,2]
[367378393,1750774257602,-151.0,0.00020627,2]
[367378394,1750774257611,-283.000422,0.00020627,2]
[367378395,1750774257621,-219.254056,0.00020627,2]
[367378396,1750774257631,-219.254056,0.00020627,2]
[367378397,1750774257640,-151.0,0.00020627,2]
[367378398,1750774257652,-151.0,0.00020627,2]
[367378399,1750774257661,-151.0,0.00020627,2]
[367378400,1750774257670,-5000.0,0.000207,11]
[367378401,1750774257680,-151.0,0.000207,2]
[367378402,1750774257689,-151.0,0.000207,2]
[367378403,1750774257698,-9142.35898707,0.000207,2]
[367378404,1750774257707,-6135.69758423,0.00020706,2]
[367378405,1750774257717,-8254.34665143,0.00020728,3]
[367378406,1750774257727,-420.0,0.00020728,2]
[367378407,1750774257736,-420.0,0.00020729,2]
[367378408,1750774257745,-104756.84406824,0.000208,2]
[367378409,1750774257754,-79533.28633601,0.000208,2]
[367378410,1750774257963,-528.78757581,0.000208,2]
[367378411,1750774257975,-340.47030623,0.000208,2]
[367378412,1750774258188,-203.23286927,0.00019178,2]
[367378413,1750774258197,-460.0,0.00019178,2]
[367378414,1750774258206,-1572.88,0.00019452,2]
[367378415,1750774258216,-151.0,0.0001948,2]
[367378416,1750774258226,-198.0,0.00019507,2]
[367378417,1750774258235,-1572.88,0.00019726,2]
[367378418,1750774258246,-1572.88,0.0002,2]
[367378419,1750774258255,-1572.88,0.00020273,2]
[367378420,1750774258266,-1572.88,0.00020547,2]
[367378421,1750774258279,-24893.67529308,0.000208,2]
[367378422,1750774259957,-460.0,0.00019178,2]
[367378423,1750774259966,-460.0,0.00019178,2]
[367378424,1750774259975,-460.0,0.00019178,2]
[367378425,1750774259984,-460.0,0.00019178,2]
[367378426,1750774259993,-136.64324118,0.00019452,2]
[367378427,1750774260135,-252.76328645,0.00018372,2]
[367378428,1750774260261,-406.38639257,0.00018372,2]
[367378429,1750774260279,-1958.56518753,0.00018372,2]
[367378430,1750774261667,-619.82007394,0.00018372,2]
[367378431,1750774263705,-619.82007394,0.00018372,2]
[367378432,1750774265250,-300.0,0.00018371,2]
[367378433,1750774266762,-300.0,0.00018371,2]
[367378434,1750774268337,-500.0,0.00018372,2]
[367378435,1750774269870,-205.5921202,0.00018372,2]
[367378436,1750774272575,-285.9878798,0.00018372,2]
[367378438,1750774275185,-214.0121202,0.00018372,2]
[367378439,1750774277848,-423.85816638,0.00018372,2]
[367378440,1750774279911,-362.12971342,0.00018372,2]
[367378441,1750774282035,-167.0,0.00018372,2]
[367378442,1750774284741,-222.01,0.00018372,2]
[367378443,1750774287052,-222.01,0.00018372,2]
[367378444,1750774289739,-213.59,0.00018372,2]
[367378445,1750774292994,-330.86372225,0.00018372,2]
[367378765,1750774491524,628.44257,0.00024,30]
[367378795,1750774625567,231.9180795,0.00017687,2]
[367378809,1750774767700,438.6009186,0.00017589,2]
[367378813,1750774939795,290.590958,0.00013699,2]
[367378814,1750774967054,1014.8947266,0.00017371,2]
[367378819,1750775094059,610.487068,0.00024,30]
[367378847,1750775159385,2229.7487607,0.00017371,2]
[367378852,1750775308360,6809.2666034,0.00017371,2]
[367378853,1750775308397,1065.376242,0.00017371,2]
[367378854,1750775308422,8404.50289793,0.00017371,2]
[367378855,1750775308445,8620.85425667,0.00017371,2]
[367378859,1750775336696,936.8266457,0.00017371,2]
[367378860,1750775359394,9257.53717718,0.00018,2]
[367378931,1750775432356,-302.83193018,0.00018271,2]
[367378933,1750775432366,-160.0,0.00018319,2]
[367378935,1750775432375,-256.51,0.00018362,2]
[367378937,1750775432384,-300.0,0.00018369,2]
[367378939,1750775432395,-300.0,0.00018369,2]
[367378941,1750775432404,-300.0,0.00018369,2]
[367378943,1750775432414,-1200.0,0.00018369,2]
[367378944,1750775432424,-300.0,0.0001837,2]
[367378945,1750775432434,-460.0,0.0001837,2]
[367378946,1750775432443,-460.0,0.0001837,2]
[367378947,1750775432453,-460.0,0.0001837,2]
[367378948,1750775432463,-460.0,0.0001837,2]
[367378949,1750775432472,-460.0,0.0001837,2]
[367378950,1750775432481,-460.0,0.0001837,2]
[367378951,1750775432490,-460.0,0.0001837,2]
[367378952,1750775432500,-460.0,0.0001837,2]
[367378953,1750775432509,-481.74,0.0001837,2]
[367378954,1750775432519,-362.12971342,0.0001837,2]
[367378955,1750775432528,-423.85816638,0.0001837,2]
[367378956,1750775432537,-205.5921202,0.0001837,2]
[367378957,1750775432546,-500.0,0.0001837,2]
[367378958,1750775432557,-500.0,0.0001837,2]
[367378959,1750775432567,-500.0,0.0001837,2]
[367378960,1750775432576,-500.0,0.0001837,2]
[367378961,1750775432586,-500.0,0.0001837,2]
[367378962,1750775432595,-500.0,0.0001837,2]
[367378963,1750775432606,-458.29107144,0.0001837,2]
[367378964,1750775432616,-500.0,0.0001837,2]
[367378965,1750775432625,-500.0,0.0001837,2]
[367378966,1750775432635,-5000.0,0.00018371,2]
[367378968,1750775432646,-460.0,0.00018371,2]
[367378969,1750775432655,-430.0,0.00018371,2]
[367378970,1750775432665,-460.0,0.00018371,2]
[367378971,1750775432675,-460.0,0.00018371,2]
[367378973,1750775432685,-460.0,0.00018371,2]
[367378975,1750775432694,-460.0,0.00018371,2]
[367378977,1750775432704,-397.32269341,0.00018371,2]
[367378980,1750775432722,-62.67730659,0.00018371,2]
[367378981,1750775432731,-460.0,0.00018371,2]
[367378983,1750775432741,-744.68409625,0.00018371,2]
[367379195,1750775438211,-460.0,0.0001837,2]
[367379197,1750775438222,-448.34935448,0.00018371,2]
[367379216,1750775438623,-1815.10654927,0.00018371,2]
[367379218,1750775438633,-958.47,0.00018371,2]
[367379220,1750775438644,-460.0,0.00018371,2]
[367379222,1750775438653,-460.0,0.00018371,2]
[367379224,1750775438662,-460.0,0.00018371,2]
[367379226,1750775438671,-460.0,0.00018371,2]
[367379228,1750775438681,-566.79,0.00018371,2]
[367379230,1750775438690,-460.0,0.00018371,2]
[367379232,1750775438700,-453.72137436,0.00018371,2]
[367379234,1750775438709,-460.0,0.00018371,2]
[367379236,1750775438720,-460.0,0.00018371,2]
[367379238,1750775438730,-460.0,0.00018371,2]
[367379240,1750775438739,-2799.29,0.00018371,2]
[367379242,1750775438748,-460.0,0.00018371,2]
[367379244,1750775438758,-460.0,0.00018371,2]
[367379246,1750775438767,-2068.12,0.00018371,2]
[367379248,1750775438776,-4102.46,0.00018371,2]
[367379250,1750775438785,-511.75,0.00018371,2]
[367379252,1750775438794,-460.0,0.00018371,2]
[367379254,1750775438803,-460.0,0.00018371,2]
[367379256,1750775438812,-1735.91,0.00018371,2]
[367379258,1750775438821,-885.66,0.00018371,2]
[367379260,1750775438830,-5406.48,0.00018371,2]
[367379262,1750775438839,-460.0,0.00018371,2]
[367379264,1750775438848,-460.0,0.00018371,2]
[367379265,1750775438856,-1272.69,0.00018371,2]
[367379268,1750775438866,-1092.02,0.00018371,2]
[367379270,1750775438876,-3031.89,0.00018371,2]
[367379272,1750775438887,-460.0,0.00018371,2]
[367379274,1750775438897,-380.0,0.00018372,2]
[367379276,1750775438907,-460.0,0.00018372,2]
[367379278,1750775438916,-460.0,0.00018372,2]
[367379280,1750775438926,-460.0,0.00018372,2]
[367379282,1750775438935,-463.47318431,0.00018372,2]
[367379283,1750775438945,-460.0,0.00018372,2]
[367379286,1750775438954,-460.0,0.00018372,2]
[367379288,1750775438963,-460.0,0.00018372,2]
[367379290,1750775438972,-460.0,0.00018372,2]
[367379292,1750775438982,-460.0,0.00018372,2]
[367379294,1750775438991,-460.0,0.00018372,2]
[367379296,1750775439000,-550.0,0.00018372,2]
[367379298,1750775439009,-460.0,0.00018372,2]
[367379300,1750775439018,-460.0,0.00018372,2]
[367379302,1750775439027,-460.0,0.00018372,2]
[367379303,1750775439036,-460.0,0.00018372,2]
[367379306,1750775439046,-563.47,0.00018372,2]
[367379308,1750775439055,-460.0,0.00018372,2]
[367379309,1750775439064,-356.45344417,0.00018372,2]
[367379312,1750775439074,-460.0,0.00018372,2]
[367379313,1750775439083,-3424.29,0.00018372,2]
[367379315,1750775439092,-460.0,0.00018372,2]
[367379317,1750775439101,-766.1,0.00018372,2]
[367379319,1750775439110,-460.0,0.00018372,2]
[367379321,1750775439119,-3125.33,0.00018372,2]
[367379323,1750775439128,-460.0,0.00018372,2]
[367379326,1750775439137,-460.0,0.00018372,2]
[367379328,1750775439147,-1290.74,0.00018372,2]
[367379329,1750775439156,-460.0,0.00018372,2]
[367379332,1750775439165,-1027.68,0.00018372,2]
[367379334,1750775439174,-460.0,0.00018372,2]
[367379336,1750775439183,-520.71,0.00018372,2]
[367379337,1750775439192,-460.0,0.00018372,2]
[367379340,1750775439201,-460.0,0.00018372,2]
[367379342,1750775439210,-640.4,0.00018372,2]
[367379343,1750775439219,-460.0,0.00018372,2]
[367379345,1750775439228,-460.0,0.00018372,2]
[367379347,1750775439237,-460.0,0.00018372,2]
[367379349,1750775439246,-460.0,0.00018372,2]
[367379351,1750775439255,-1859.26,0.00018372,2]
[367379353,1750775439263,-460.0,0.00018372,2]
[367379355,1750775439273,-1154.22,0.00018372,2]
[367379357,1750775439282,-460.0,0.00018372,2]
[367379360,1750775439291,-460.0,0.00018372,2]
[367379361,1750775439300,-460.0,0.00018372,2]
[367379363,1750775439309,-1043.78,0.00018372,2]
[367379365,1750775439319,-460.0,0.00018372,2]
[367379367,1750775439328,-500.0,0.00018372,2]
[367379369,1750775439337,-460.0,0.00018644,2]
[367379371,1750775439346,-252.76566151,0.00018644,2]
[367379373,1750775439355,-460.0,0.00018644,2]
[367379375,1750775439364,-460.0,0.00018644,2]
[367379377,1750775439373,-460.0,0.00018644,2]
[367379379,1750775439382,-460.0,0.00018644,2]
[367379381,1750775439391,-481.74,0.00018644,2]
[367379383,1750775439400,-460.0,0.00018645,2]
[367379385,1750775439410,-460.0,0.00018645,2]
[367379388,1750775439419,-460.0,0.00018645,2]
[367379390,1750775439430,-460.0,0.00018645,2]
[367379392,1750775439439,-460.0,0.00018645,2]
[367379393,1750775439448,-3008.14,0.00018645,2]
[367379396,1750775439457,-958.47,0.00018645,2]
[367379397,1750775439466,-460.0,0.00018645,2]
[367379400,1750775439475,-460.0,0.00018645,2]
[367379401,1750775439484,-460.0,0.00018645,2]
[367379403,1750775439493,-566.79,0.00018645,2]
[367379406,1750775439502,-460.0,0.00018645,2]
[367379410,1750775439511,-2799.29,0.00018645,2]
[367379411,1750775439520,-460.0,0.00018645,2]
[367379413,1750775439529,-460.0,0.00018645,2]
[367379415,1750775439539,-2068.12,0.00018645,2]
[367379417,1750775439548,-4102.46,0.00018645,2]
[367379419,1750775439557,-511.75,0.00018645,2]
[367379421,1750775439566,-460.0,0.00018645,2]
[367379423,1750775439577,-460.0,0.00018645,2]
[367379426,1750775439586,-1735.91,0.00018645,2]
[367379429,1750775439596,-885.66,0.00018645,2]
[367379430,1750775439605,-5406.48,0.00018645,2]
[367379433,1750775439615,-460.0,0.00018645,2]
[367379435,1750775439625,-1272.69,0.00018645,2]
[367379437,1750775439634,-1092.02,0.00018645,2]
[367379438,1750775439643,-3031.89,0.00018645,2]
[367379441,1750775439652,-460.0,0.00018646,2]
[367379442,1750775439661,-218.09063573,0.00018646,2]
[367379444,1750775439670,-460.0,0.00018646,2]
[367379446,1750775439679,-460.0,0.00018646,2]
[367379448,1750775439689,-548.48,0.00018646,2]
[367379450,1750775439698,-460.0,0.00018646,2]
[367379452,1750775439707,-460.0,0.00018646,2]
[367379455,1750775439719,-460.0,0.00018646,2]
[367379457,1750775439729,-460.0,0.00018646,2]
[367379458,1750775439738,-460.0,0.00018646,2]
[367379460,1750775439747,-563.47,0.00018646,2]
[367379462,1750775439757,-460.0,0.00018646,2]
[367379465,1750775439768,-165.0,0.00018646,2]
[367379468,1750775439777,-766.1,0.00018646,2]
[367379470,1750775439787,-460.0,0.00018646,2]
[367379471,1750775439798,-3125.33,0.00018646,2]
[367379474,1750775439808,-460.0,0.00018646,2]
[367379475,1750775439817,-460.0,0.00018646,2]
[367379478,1750775439825,-1290.74,0.00018646,2]
[367379479,1750775439836,-370.76392313,0.00018646,2]
[367379481,1750775439845,-1027.68,0.00018646,2]
[367379483,1750775439854,-598.56951195,0.00018646,2]
[367379486,1750775439863,-520.71,0.00018646,2]
[367379487,1750775439873,-460.0,0.00018646,2]
[367379489,1750775439883,-640.4,0.00018646,2]
[367379491,1750775439892,-460.0,0.00018646,2]
[367379493,1750775439902,-460.0,0.00018646,2]
[367379495,1750775439912,-460.0,0.00018646,2]
[367379497,1750775439924,-460.0,0.00018646,2]
[367379499,1750775439934,-1859.26,0.00018646,2]
[367379502,1750775439944,-460.0,0.00018646,2]
[367379503,1750775439954,-1154.22,0.00018646,2]
[367379505,1750775439963,-460.0,0.00018646,2]
[367379507,1750775439973,-451.88245737,0.00018646,2]
[367379509,1750775439982,-1043.78,0.00018646,2]
[367379511,1750775439991,-460.0,0.00018646,2]
[367379513,1750775440000,-500.0,0.00018646,2]
[367379515,1750775440009,-2408.0,0.00018743,3]
[367379517,1750775440018,-2410.0,0.00018743,3]
[367379519,1750775440027,-2408.0,0.00018743,3]
[367379521,1750775440036,-2408.0,0.00018743,3]
[367379523,1750775440046,-2408.0,0.00018743,3]
[367379525,1750775440055,-2408.0,0.00018743,3]
[367379527,1750775440064,-2408.0,0.00018743,3]
[367379529,1750775440073,-12556.00642039,0.00018743,3]
[367379531,1750775440082,-846.68469334,0.00018743,3]
[367379533,1750775440091,-213.66798275,0.00018743,3]
[367379535,1750775440099,-524.15841286,0.00018743,3]
[367379537,1750775440108,-302.83193012,0.00018789,2]
[367379539,1750775440117,-513.0,0.00018846,2]
[367379541,1750775440126,-3902.63688994,0.00018917,2]
[367379543,1750775440135,-460.0,0.00018918,2]
[367379545,1750775440144,-460.0,0.00018918,2]
[367379547,1750775440154,-460.0,0.00018918,2]
[367379549,1750775440163,-460.0,0.00018918,2]
[367379551,1750775440171,-460.0,0.00018918,2]
[367379553,1750775440180,-481.74,0.00018918,2]
[367379555,1750775440189,-460.0,0.00018919,2]
[367379557,1750775440199,-460.0,0.00018919,2]
[367379560,1750775440208,-460.0,0.00018919,2]
[367379562,1750775440217,-526.78093671,0.00018919,2]
[367379564,1750775440226,-460.0,0.00018919,2]
[367379565,1750775440235,-3008.14,0.00018919,2]
[367379568,1750775440244,-958.47,0.00018919,2]
[367379569,1750775440253,-460.0,0.00018919,2]
[367379571,1750775440262,-440.0,0.00018919,2]
[367379574,1750775440271,-460.0,0.00018919,2]
[367379576,1750775440280,-566.79,0.00018919,2]
[367379578,1750775440289,-460.0,0.00018919,2]
[367379579,1750775440298,-2799.29,0.00018919,2]
[367379581,1750775440308,-460.0,0.00018919,2]
[367379583,1750775440321,-460.0,0.00018919,2]
[367379585,1750775440330,-2068.12,0.00018919,2]
[367379587,1750775440339,-4102.46,0.00018919,2]
[367379607,1750775440513,-511.75,0.00018919,2]
[367379610,1750775440523,-460.0,0.00018919,2]
[367379611,1750775440532,-460.0,0.00018919,2]
[367379614,1750775440541,-1735.91,0.00018919,2]
[367379616,1750775440550,-885.66,0.00018919,2]
[367379618,1750775440559,-5406.48,0.00018919,2]
[367379620,1750775440568,-1272.69,0.00018919,2]
[367379622,1750775440577,-471.21,0.00018919,2]
[367379624,1750775440586,-1092.02,0.00018919,2]
[367379626,1750775440595,-3031.89,0.00018919,2]
[367379627,1750775440605,-460.0,0.0001892,2]
[367379629,1750775440614,-460.0,0.0001892,2]
[367379631,1750775440624,-460.0,0.0001892,2]
[367379634,1750775440634,-460.0,0.0001892,2]
[367379636,1750775440644,-189.66,0.0001892,2]
[367379637,1750775440653,-460.0,0.0001892,2]
[367379639,1750775440663,-460.0,0.0001892,2]
[367379641,1750775440672,-460.0,0.0001892,2]
[367379643,1750775440681,-563.47,0.0001892,2]
[367379645,1750775440691,-460.0,0.0001892,2]
[367379647,1750775440701,-458.31339412,0.0001892,2]
[367379649,1750775440710,-766.1,0.0001892,2]
[367379651,1750775440722,-322.48,0.0001892,2]
[367379653,1750775440732,-3125.33,0.0001892,2]
[367379655,1750775440742,-607.26,0.0001892,2]
[367379657,1750775440751,-460.0,0.0001892,2]
[367379659,1750775440760,-1290.74,0.0001892,2]
[367379661,1750775440770,-1027.68,0.0001892,2]
[367379663,1750775440780,-520.71,0.0001892,2]
[367379665,1750775440790,-460.0,0.0001892,2]
[367379667,1750775440799,-640.4,0.0001892,2]
[367379669,1750775440810,-460.0,0.0001892,2]
[367379671,1750775440820,-460.0,0.0001892,2]
[367379673,1750775440829,-460.0,0.0001892,2]
[367379675,1750775440839,-460.0,0.0001892,2]
[367379677,1750775440848,-1859.26,0.0001892,2]
[367379679,1750775440857,-1154.22,0.0001892,2]
[367379681,1750775440867,-460.0,0.0001892,2]
[367379683,1750775440877,-1043.78,0.0001892,2]
[367379685,1750775440886,-258.81,0.0001892,2]
[367379687,1750775440896,-9076.57537263,0.00019,2]
[367379689,1750775440905,-256.51,0.00019006,2]
[367379691,1750775440915,-256.51,0.00019008,2]
[367379693,1750775440924,-3424.29,0.00019015,2]
[367379695,1750775440933,-460.0,0.00019016,2]
[367379697,1750775440943,-460.0,0.00019016,2]
[367379699,1750775440953,-460.0,0.00019016,2]
[367379701,1750775440963,-460.0,0.00019016,2]
[367379703,1750775440972,-441.02612053,0.00019016,2]
[367379705,1750775440981,-380.0,0.00019016,2]
[367379707,1750775440991,-460.0,0.00019016,2]
[367379709,1750775441001,-460.0,0.00019016,2]
[367379711,1750775441010,-460.0,0.00019016,2]
[367379713,1750775441019,-450.0,0.00019016,2]
[367379715,1750775441029,-460.0,0.00019016,2]
[367379717,1750775441038,-460.0,0.00019016,2]
[367379719,1750775441048,-460.0,0.00019016,2]
[367379721,1750775441057,-269.97000075,0.00019016,2]
[367379723,1750775441066,-458.40269902,0.00019016,2]
[367379725,1750775441076,-600.18,0.00019016,2]
[367379727,1750775441085,-460.0,0.00019016,2]
[367379729,1750775441095,-460.0,0.00019016,2]
[367379731,1750775441105,-460.0,0.00019016,2]
[367379733,1750775441114,-460.0,0.00019016,2]
[367379735,1750775441123,-460.0,0.00019016,2]
[367379737,1750775441133,-460.0,0.00019016,2]
[367379739,1750775441143,-460.0,0.00019016,2]
[367379741,1750775441153,-3424.29,0.00019016,2]
[367379743,1750775441163,-460.0,0.00019016,2]
[367379745,1750775441172,-460.0,0.00019016,2]
[367379747,1750775441182,-460.0,0.00019016,2]
[367379749,1750775441191,-460.0,0.00019016,2]
[367379751,1750775441201,-460.0,0.00019016,2]
[367379753,1750775441210,-460.0,0.00019016,2]
[367379754,1750775441220,-1416.1,0.00019016,2]
[367379757,1750775441231,-450.37840309,0.00019016,2]
[367379759,1750775441242,-460.0,0.00019016,2]
[367379760,1750775441251,-460.0,0.00019016,2]
[367379762,1750775441263,-460.0,0.00019016,2]
[367379765,1750775441274,-460.0,0.00019016,2]
[367379766,1750775441284,-460.0,0.00019016,2]
[367379769,1750775441294,-460.0,0.00019016,2]
[367379770,1750775441304,-460.0,0.00019016,2]
[367379773,1750775441314,-210.27,0.00019016,2]
[367379774,1750775441324,-7304.53,0.00019016,2]
[367379777,1750775441335,-478.7304356,0.00019016,2]
[367379779,1750775441345,-460.0,0.00019016,2]
[367379781,1750775441355,-464.96,0.00019016,2]
[367379782,1750775441365,-552.52605129,0.00019017,2]
[367379785,1750775441375,-460.0,0.00019017,2]
[367379787,1750775441388,-460.0,0.00019017,2]
[367379789,1750775441399,-755.24,0.00019017,2]
[367379790,1750775441409,-460.0,0.00019017,2]
[367379792,1750775441419,-772.77,0.00019017,2]
[367379795,1750775441430,-460.0,0.00019017,2]
[367379796,1750775441439,-814.7,0.00019017,2]
[367379798,1750775441449,-460.0,0.00019017,2]